bitfinex-derivatives/quotes_BTCF0:USTF0_20250514
["timestamp","ask_amount","ask_price","bid_price","bid_amount"]
[1747220759082,0.49770939,103970.0,103960.0,0.04696]
[1747220759586,0.43321261,103970.0,103960.0,0.04696]
[1747220760087,0.79401261,103970.0,103960.0,0.04696]
[1747220760288,0.43321261,103970.0,103960.0,0.04696]
[1747220760489,0.71621128,103970.0,103960.0,0.04696]
[1747220760787,0.35541128,103970.0,103960.0,0.20394621]
[1747220761288,0.19341128,103970.0,103960.0,0.20394621]
[1747220761487,0.63153128,103970.0,103960.0,0.20394621]
[1747220762088,0.41249128,103970.0,103960.0,0.20394621]
[1747220762289,0.63153128,103970.0,103960.0,0.20394621]
[1747220764790,0.70933261,103970.0,103960.0,0.14314621]
[1747220764988,0.71933261,103970.0,103960.0,0.04696]
[1747220765790,0.79276397,103970.0,103960.0,0.04696]
[1747220765991,0.71496264,103970.0,103960.0,0.04696]
[1747220766192,0.79276397,103970.0,103960.0,0.04696]
[1747220767591,0.78276397,103970.0,103960.0,0.17594621]
[1747220767777,0.34464397,103970.0,103960.0,0.20754621]
[1747220767981,0.78264397,103970.0,103960.0,0.20754621]
[1747220768786,0.70921261,103970.0,103960.0,0.20754621]
[1747220769586,0.82921261,103970.0,103960.0,0.20754621]
[1747220769890,0.39121261,103970.0,103960.0,0.20754621]
[1747220770088,0.82921261,103970.0,103960.0,0.20754621]
[1747220771789,0.82921261,103970.0,103960.0,0.14314621]
[1747220771995,0.99161852,103970.0,103960.0,0.04696]
[1747220774084,0.99161852,103970.0,103960.0,0.08016]
[1747220776394,0.89370724,103970.0,103960.0,0.08016]
[1747220778293,1.54230857,103970.0,103960.0,0.01426]
[1747220778493,1.10370724,103970.0,103960.0,0.01426]
[1747220778688,1.02590591,103970.0,103960.0,0.04736]
[1747220778897,1.10370724,103970.0,103960.0,0.0331]
[1747220779089,0.69586591,103970.0,103960.0,0.0633]
[1747220779294,0.77366724,103970.0,103960.0,0.0633]
[1747220781195,0.79749422,103970.0,103960.0,0.0633]
[1747220782500,0.79749422,103970.0,103960.0,0.06722]
[1747220782688,0.79749422,103970.0,103960.0,0.08147]
[1747220783493,0.71969289,103970.0,103960.0,0.08147]
[1747220783684,0.35953422,103970.0,103960.0,0.08147]
[1747220783890,0.50073289,103970.0,103960.0,0.17765621]
[1747220784198,0.50073289,103970.0,103960.0,0.20985621]
[1747220785193,0.91853422,103970.0,103960.0,0.20985621]
[1747220785398,0.67853422,103970.0,103960.0,0.17765621]
[1747220787801,0.60073289,103970.0,103960.0,0.17765621]
[1747220788103,0.67853422,103970.0,103960.0,0.17765621]
[1747220788601,0.80120306,103970.0,103960.0,0.17765621]
[1747220790004,0.58220306,103970.0,103960.0,0.17765621]
[1747220790299,0.80682377,103970.0,103960.0,0.17765621]
[1747220790798,1.1454251,103970.0,103960.0,0.11435621]
[1747220790986,1.41762377,103970.0,103960.0,0.01817]
[1747220791192,1.57962377,103970.0,103960.0,0.01817]
[1747220791391,1.49620173,103970.0,103960.0,0.01817]
[1747220791591,1.57400306,103970.0,103960.0,0.01817]
[1747220791987,1.74799239,103970.0,103960.0,0.01425]
[1747220792296,1.74799239,103970.0,103950.0,0.03342391]
[1747220792297,1.74799239,103970.0,103950.0,0.01012391]
[1747220792489,0.79838266,103960.0,103950.0,0.01012391]
[1747220792690,1.14838266,103960.0,103950.0,0.01012391]
[1747220793101,1.31038266,103960.0,103950.0,0.01012391]
[1747220793298,1.27334365,103960.0,103950.0,0.01012391]
[1747220797706,1.41981448,103960.0,103950.0,0.01012391]
[1747220798794,1.30125083,103960.0,103950.0,0.01012391]
[1747220799207,1.41981448,103960.0,103950.0,0.01012391]
[1747220800409,1.45251448,103960.0,103950.0,0.01012391]
[1747220800904,1.33395083,103960.0,103950.0,0.01012391]
[1747220801309,1.07163448,103960.0,103950.0,0.01012391]
[1747220801515,1.50939448,103960.0,103950.0,0.07192391]
[1747220801809,1.13277403,103960.0,103950.0,0.07192391]
[1747220802008,0.69501403,103960.0,103950.0,0.10252391]
[1747220802211,1.13277403,103960.0,103950.0,0.10252391]
[1747220802605,0.77197403,103960.0,103950.0,0.46332391]
[1747220803710,0.77197403,103960.0,103950.0,0.10252391]
[1747220804214,0.55309403,103960.0,103950.0,0.46332391]
[1747220804508,0.26891403,103960.0,103950.0,0.67808302]
[1747220805399,0.17137375,103960.0,103950.0,0.67808302]
[1747220806312,0.17137375,103960.0,103950.0,0.84008302]
[1747220807412,0.17137375,103960.0,103950.0,0.72151937]
[1747220807603,0.17137375,103960.0,103950.0,0.72251937]
[1747220808010,0.17137375,103960.0,103950.0,0.72451937]
[1747220809716,0.77996899,103970.0,103950.0,0.72451937]
[1747220809913,0.77996899,103970.0,103960.0,0.064]
[1747220810108,0.34224899,103970.0,103960.0,0.064]
[1747220810417,0.19098534,103970.0,103960.0,0.54336365]
[1747220810605,0.19098534,103970.0,103960.0,0.52099084]
[1747220811704,0.19098534,103970.0,103960.0,0.52399084]
[1747220811906,0.19098534,103970.0,103960.0,2.02399084]
[1747220812107,0.19098534,103970.0,103960.0,2.18599084]
[1747220812406,0.17137375,103970.0,103960.0,2.18599084]
[1747220812608,0.17137375,103970.0,103960.0,2.30455449]
[1747220812908,0.17137375,103970.0,103960.0,2.18599084]
[1747220813415,0.19394446,103980.0,103960.0,2.18599084]
[1747220813719,0.53394446,103980.0,103970.0,0.4578]
[1747220814320,0.53394446,103980.0,103970.0,0.55397696]
[1747220814816,0.56414446,103980.0,103970.0,0.55397696]
[1747220815005,0.56414446,103980.0,103970.0,0.55497696]
[1747220815205,0.56414446,103980.0,103970.0,0.55697696]
[1747220817811,0.53394446,103980.0,103970.0,0.55697696]
[1747220818203,0.4360166,103980.0,103970.0,0.55697696]
[1747220819316,0.51375661,103980.0,103970.0,0.55697696]
[1747220819617,0.4360166,103980.0,103970.0,0.55697696]
[1747220819807,0.51375661,103980.0,103970.0,0.55697696]
[1747220821319,0.4360166,103980.0,103970.0,0.55697696]
[1747220821519,0.51375661,103980.0,103970.0,0.55697696]
[1747220822421,0.54705661,103980.0,103970.0,0.55697696]
[1747220822718,0.57965661,103980.0,103970.0,0.55697696]
[1747220823306,0.50621072,103980.0,103970.0,0.55697696]
[1747220824611,0.53881072,103980.0,103970.0,0.55697696]
[1747220824921,0.53881072,103980.0,103970.0,0.56511696]
[1747220825117,0.50621072,103980.0,103970.0,0.56511696]
[1747220825624,0.42847071,103980.0,103970.0,0.56511696]
[1747220825823,0.46107071,103980.0,103970.0,0.56511696]
[1747220826619,0.46107071,103980.0,103970.0,0.56411696]
[1747220827424,0.46107071,103980.0,103970.0,0.56511696]
[1747220828022,0.12107071,103980.0,103970.0,0.56511696]
[1747220831527,0.19881072,103980.0,103970.0,0.56511696]
[1747220833627,0.12107071,103980.0,103970.0,0.53311696]
[1747220834825,0.62655073,103980.0,103970.0,0.50141696]
[1747220835036,0.54881072,103980.0,103970.0,0.50141696]
[1747220835232,0.19881072,103980.0,103970.0,0.50141696]
[1747220835829,0.19881072,103980.0,103970.0,0.50041696]
[1747220836328,0.19881072,103980.0,103970.0,0.49841696]
[1747220838126,0.27225661,103980.0,103970.0,0.49841696]
[1747220841931,0.37018447,103980.0,103970.0,0.49841696]
[1747220842640,0.38018447,103980.0,103970.0,0.49841696]
[1747220842830,0.38018447,103980.0,103970.0,0.13761696]
[1747220843027,0.38018447,103980.0,103970.0,0.49841696]
[1747220845838,0.30244446,103980.0,103970.0,0.49841696]
[1747220846039,0.38018447,103980.0,103970.0,0.49841696]
[1747220848032,0.38018447,103980.0,103970.0,0.53051696]
[1747220848641,0.38018447,103980.0,103970.0,0.16971696]
[1747220848938,0.38018447,103980.0,103970.0,0.53051696]
[1747220849529,0.30673858,103980.0,103970.0,0.53051696]
[1747220852137,0.22899857,103980.0,103970.0,0.53051696]
[1747220852325,0.30673858,103980.0,103970.0,0.53051696]
[1747220859459,0.22899857,103980.0,103970.0,0.53051696]
[1747220860359,0.22899857,103980.0,103970.0,0.56211696]
[1747220860949,0.22899857,103980.0,103970.0,0.20131696]
[1747220861150,0.22899857,103980.0,103970.0,0.56211696]
[1747220861450,0.30673858,103980.0,103970.0,0.43434]
[1747220862959,0.22899857,103980.0,103970.0,0.43434]
[1747220863548,0.43739857,103980.0,103970.0,0.53051696]
[1747220863855,0.18639857,103980.0,103970.0,0.64095697]
[1747220864061,0.18639857,103980.0,103970.0,0.56321696]
[1747220865556,0.12049857,103980.0,103970.0,0.56321696]
[1747220868260,0.12049857,103980.0,103970.0,0.64095697]
[1747220869760,0.19409568,103980.0,103970.0,0.64095697]
[1747220872067,0.19409568,103980.0,103970.0,0.64295697]
[1747220872255,0.19409568,103980.0,103970.0,0.64395697]
[1747220874865,0.09616782,103980.0,103970.0,0.64395697]
[1747220880366,0.31456782,103980.0,103970.0,0.64395697]
[1747220881170,0.37556782,103980.0,103970.0,0.64395697]
[1747220881369,0.45330783,103980.0,103970.0,0.56621696]
[1747220882369,0.39230783,103980.0,103970.0,0.56621696]
[1747220883659,0.45470783,103980.0,103970.0,0.56621696]
[1747220885171,0.45470783,103980.0,103970.0,0.20541696]
[1747220885360,0.45470783,103980.0,103970.0,0.56621696]
[1747220886069,0.48740783,103980.0,103970.0,0.56621696]
[1747220886766,0.48740783,103980.0,103970.0,0.20541696]
[1747220886970,0.26900783,103980.0,103970.0,0.56621696]
[1747220887172,0.48740783,103980.0,103970.0,0.56621696]
[1747220888173,0.48740783,103980.0,103970.0,0.20541696]
[1747220888374,0.48740783,103980.0,103970.0,0.56621696]
[1747220889676,0.40966782,103980.0,103970.0,0.56621696]
[1747220889877,0.48740783,103980.0,103970.0,0.56621696]
[1747220891779,0.58533569,103980.0,103970.0,0.56621696]
[1747220893467,0.58505569,103980.0,103970.0,0.56621696]
[1747220896280,0.50731568,103980.0,103970.0,0.56621696]
[1747220896585,0.28919568,103980.0,103970.0,0.56621696]
[1747220896787,0.50731568,103980.0,103970.0,0.56621696]
[1747220898184,0.28919568,103980.0,103970.0,0.56621696]
[1747220898369,0.50731568,103980.0,103970.0,0.56621696]
[1747220898877,0.41221568,103980.0,103970.0,0.56621696]
[1747220899383,0.41221568,103980.0,103970.0,2.06621696]
[1747220899785,0.37558782,103980.0,103970.0,2.06621696]
[1747220902187,0.40768782,103980.0,103970.0,2.06621696]
[1747220903189,0.40768782,103980.0,103970.0,2.03351696]
[1747220903382,0.40768782,103980.0,103970.0,0.53351696]
[1747220904085,0.50561568,103980.0,103970.0,0.53351696]
[1747220904989,0.28749568,103980.0,103970.0,0.53351696]
[1747220905189,0.50561568,103980.0,103970.0,0.53351696]
[1747220907790,0.33409071,103980.0,103970.0,0.53351696]
[1747220910495,0.33409071,103980.0,103970.0,0.53251696]
[1747220910792,0.33409071,103980.0,103970.0,0.56481696]
[1747220911496,0.33409071,103980.0,103970.0,0.56581696]
[1747220911707,0.43221875,103980.0,103970.0,0.56381696]
[1747220912196,0.43221875,103980.0,103970.0,0.56481696]
[1747220913594,0.21409875,103980.0,103970.0,0.56481696]
[1747220913809,0.43221875,103980.0,103970.0,0.56481696]
[1747220917800,0.43221875,103980.0,103970.0,0.20401696]
[1747220918195,0.43221875,103980.0,103970.0,0.56481696]
[1747220920391,0.43221875,103980.0,103970.0,0.20401696]
[1747220920592,0.43221875,103980.0,103970.0,0.56481696]
[1747220924502,0.43221875,103980.0,103970.0,0.20401696]
[1747220924704,0.43221875,103980.0,103970.0,0.56481696]
[1747220925588,0.50995876,103980.0,103970.0,0.53251696]
[1747220925894,0.52995876,103980.0,103970.0,0.53251696]
[1747220927600,0.50995876,103980.0,103970.0,0.53251696]
[1747220927899,0.52995876,103980.0,103970.0,0.53251696]
[1747220928304,0.44221875,103980.0,103970.0,0.53251696]
[1747220928603,0.51995876,103980.0,103970.0,0.53251696]
[1747220930790,0.42183072,103980.0,103970.0,0.53251696]
[1747220931401,0.34409071,103980.0,103970.0,0.53251696]
[1747220933294,0.33409071,103980.0,103970.0,0.53251696]
[1747220933499,0.41183072,103980.0,103970.0,0.50041696]
[1747220935006,0.33409071,103980.0,103970.0,0.50041696]
[1747220935203,0.33409071,103980.0,103970.0,0.53331696]
[1747220935393,0.41183072,103980.0,103970.0,0.53331696]
[1747220935597,0.33409071,103980.0,103970.0,0.53331696]
[1747220936296,0.33409071,103980.0,103970.0,0.17251696]
[1747220936496,0.33971142,103980.0,103970.0,0.17251696]
[1747220936697,0.33971142,103980.0,103970.0,0.53331696]
[1747220937600,0.33409071,103980.0,103970.0,0.53331696]
[1747220937799,0.43221875,103980.0,103970.0,0.53331696]
[1747220938403,0.95769877,103980.0,103970.0,0.40424]
[1747220938604,0.96331948,103980.0,103970.0,0.40424]
[1747220939202,1.04757947,103980.0,103970.0,0.40424]
[1747220939599,1.04195876,103980.0,103970.0,0.40424]
[1747220939903,1.11969877,103980.0,103970.0,0.40424]
[1747220940407,1.11969877,103980.0,103970.0,0.04344]
[1747220942110,1.14423078,103980.0,103970.0,0.04244]
[1747220942516,1.06649077,103980.0,103970.0,0.04244]
[1747220942901,1.06649077,103980.0,103970.0,0.04144]
[1747220943705,0.61875076,103980.0,103970.0,0.04144]
[1747220943902,1.03649077,103980.0,103970.0,0.04144]
[1747220945611,0.91383072,103980.0,103970.0,0.04144]
[1747220946914,1.35237073,103980.0,103970.0,0.04144]
[1747220948119,1.19689071,103980.0,103970.0,0.04144]
[1747220948314,1.35237073,103980.0,103970.0,0.04144]
[1747220950112,1.47503078,103980.0,103970.0,0.04144]
[1747220956525,1.69243078,103980.0,103970.0,0.04144]
[1747220957417,1.61469077,103980.0,103970.0,0.04144]
[1747220957916,1.69243078,103980.0,103970.0,0.04144]
[1747220965722,1.10143076,103980.0,103970.0,0.04144]
[1747220965920,1.61393077,103980.0,103970.0,0.10394]
[1747220966129,1.45193077,103980.0,103970.0,0.10394]
[1747220966424,1.37419076,103980.0,103970.0,0.10394]
[1747220966830,1.52967078,103980.0,103970.0,0.10394]
[1747220971223,1.09491078,103980.0,103970.0,0.10394]
[1747220971423,1.52959078,103980.0,103970.0,0.10394]
[1747220972228,1.52959078,103980.0,103950.0,0.00192391]
[1747220972422,0.43854001,103960.0,103950.0,0.06372391]
[1747220972625,1.24322001,103960.0,103950.0,0.15990087]
[1747220972933,1.33862001,103960.0,103950.0,0.15990087]
[1747220974727,1.33862001,103960.0,103950.0,0.16090087]
[1747220974926,0.97782001,103960.0,103950.0,0.16190087]
[1747220975528,1.33862001,103960.0,103950.0,0.16190087]
[1747220976139,1.34424072,103960.0,103950.0,0.16190087]
[1747220976337,1.34424072,103960.0,103950.0,0.19500087]
[1747220977736,1.35386347,103960.0,103950.0,0.19500087]
[1747220978138,1.4519571,103960.0,103950.0,0.19500087]
[1747220978332,1.44233435,103960.0,103950.0,0.19500087]
[1747220978741,1.07233435,103960.0,103950.0,0.19500087]
[1747220979241,1.06671364,103960.0,103950.0,0.19500087]
[1747220981539,0.70591364,103960.0,103950.0,0.55580087]
[1747220982045,0.62817363,103960.0,103950.0,0.55580087]
[1747220983943,0.09809363,103960.0,103950.0,0.63354088]
[1747220984248,0.09809363,103960.0,103950.0,0.79554088]
[1747220984542,0.09809363,103960.0,103950.0,2.29554088]
[1747220987241,0.67601363,103970.0,103950.0,2.29554088]
[1747220987454,0.67601363,103970.0,103960.0,0.0948]
[1747220987948,0.70681363,103970.0,103960.0,0.0948]
[1747220988150,0.70681363,103970.0,103960.0,0.19099084]
[1747220988857,0.78455364,103970.0,103960.0,0.19099084]
[1747220989148,0.85075364,103970.0,103960.0,0.19099084]
[1747220990451,1.06779364,103970.0,103960.0,0.19099084]
[1747220990750,0.31521363,103970.0,103960.0,0.55179084]
[1747220990950,0.53225363,103970.0,103960.0,0.55179084]
[1747220992550,0.67119364,103970.0,103960.0,0.55179084]
[1747220993050,0.70189364,103970.0,103960.0,0.55179084]
[1747220994241,0.70189364,103970.0,103960.0,0.56140189]
[1747220995753,0.70189364,103970.0,103960.0,0.55179084]
[1747220997043,0.62415363,103970.0,103960.0,0.55179084]
[1747220997254,0.70189364,103970.0,103960.0,0.55179084]
[1747220997554,0.70189364,103970.0,103960.0,0.561319]
[1747220998453,0.70189364,103970.0,103960.0,0.55179084]
[1747221000655,0.48485364,103970.0,103960.0,0.55179084]
[1747221001355,0.48485364,103970.0,103960.0,0.51959084]
[1747221004158,0.86485364,103970.0,103960.0,0.51959084]
[1747221004360,0.86485364,103970.0,103960.0,0.12639084]
[1747221004656,1.44819435,103970.0,103950.0,0.00192391]
[1747221004849,0.17104001,103960.0,103950.0,0.39602391]
[1747221005053,0.17104001,103960.0,103950.0,0.49221012]
[1747221006157,0.17104001,103960.0,103950.0,0.49321012]
[1747221006564,0.18080057,103960.0,103950.0,0.49321012]
[1747221006757,0.17104001,103960.0,103950.0,0.49321012]
[1747221006953,0.17104001,103960.0,103950.0,0.39702391]
[1747221007457,0.17104001,103960.0,103950.0,0.39802391]
[1747221007865,0.17104001,103960.0,103950.0,0.03722391]
[1747221008865,0.51104001,103960.0,103950.0,0.03722391]
[1747221010462,0.17104001,103960.0,103950.0,0.03722391]
[1747221010666,0.17104001,103960.0,103950.0,0.03622391]
[1747221011166,0.17104001,103960.0,103950.0,0.03522391]
[1747221011569,0.18088756,103960.0,103950.0,0.03522391]
[1747221014068,0.20124118,103960.0,103950.0,0.03522391]
[1747221014267,0.27898119,103960.0,103950.0,0.03522391]
[1747221015672,0.27898119,103960.0,103950.0,0.00192391]
[1747221015861,0.63978119,103960.0,103950.0,0.00192391]
[1747221016056,0.63978119,103960.0,103950.0,0.03342391]
[1747221017068,1.2495212,103960.0,103950.0,0.00192391]
[1747221020875,1.25514191,103960.0,103950.0,0.00192391]
[1747221021979,0.89434191,103960.0,103950.0,0.00192391]
[1747221022178,1.25514191,103960.0,103950.0,0.00192391]
[1747221022882,1.09966189,103960.0,103950.0,0.00192391]
[1747221023070,1.25514191,103960.0,103950.0,0.00192391]
[1747221023482,1.27970833,103960.0,103950.0,0.00192391]
[1747221023981,1.27408762,103960.0,103950.0,0.00192391]
[1747221024874,1.27970833,103960.0,103950.0,0.00192391]
[1747221026976,1.27408762,103960.0,103950.0,0.00192391]
[1747221034883,1.49072762,103960.0,103950.0,0.00192391]
[1747221035190,1.49072762,103960.0,103950.0,0.06602391]
[1747221037584,1.49072762,103960.0,103950.0,0.03362391]
[1747221038696,1.36806757,103960.0,103950.0,0.03362391]
[1747221038995,1.72886757,103960.0,103950.0,0.03362391]
[1747221047098,1.72886757,103960.0,103940.0,0.0656]
[1747221047299,0.75216001,103950.0,103940.0,0.0324]
[1747221047488,1.09216001,103950.0,103940.0,0.0324]
[1747221050183,1.09216001,103950.0,103940.0,0.0655]
[1747221050184,1.25416001,103950.0,103940.0,0.0655]
[1747221051097,1.09216001,103950.0,103940.0,0.0655]
[1747221051798,1.21484321,103950.0,103940.0,0.0655]
[1747221052099,1.1371032,103950.0,103940.0,0.0655]
[1747221052288,1.21484321,103950.0,103940.0,0.0655]
[1747221052489,1.1371032,103950.0,103940.0,0.0655]
[1747221052797,1.21484321,103950.0,103940.0,0.0655]
[1747221052985,1.1371032,103950.0,103940.0,0.0655]
[1747221053189,1.21484321,103950.0,103940.0,0.0655]
[1747221054803,1.21484321,103950.0,103910.0,0.51075113]
[1747221054994,0.07774001,103930.0,103920.0,0.0927]
[1747221055195,0.08774001,103930.0,103920.0,0.15780472]
[1747221055396,0.11944001,103930.0,103920.0,0.0616]
[1747221055698,0.11944001,103930.0,103920.0,0.15780472]
[1747221056105,0.11944001,103930.0,103920.0,0.31980472]
[1747221056292,0.0417,103930.0,103920.0,0.31980472]
[1747221056487,0.11944001,103930.0,103920.0,0.32280472]
[1747221057402,0.11944001,103930.0,103920.0,0.32580472]
[1747221057703,0.12410938,103930.0,103920.0,0.32580472]
[1747221058390,0.04636937,103930.0,103920.0,0.32580472]
[1747221058595,0.12410938,103930.0,103920.0,0.32580472]
[1747221060501,0.34066938,103930.0,103920.0,0.32580472]
[1747221060711,0.34066938,103930.0,103920.0,0.2296]
[1747221061195,0.69066938,103930.0,103920.0,0.0676]
[1747221061399,0.72326938,103930.0,103920.0,0.0676]
[1747221061588,0.75476938,103930.0,103920.0,0.0676]
[1747221062302,1.11556938,103930.0,103920.0,0.0676]
[1747221062507,0.75476938,103930.0,103920.0,0.0676]
[1747221062699,1.11556938,103930.0,103920.0,0.0676]
[1747221065508,1.12119009,103930.0,103920.0,0.0676]
[1747221066406,1.12119009,103930.0,103920.0,0.0371]
[1747221067206,1.12119009,103930.0,103920.0,0.07]
[1747221067507,1.11556938,103930.0,103920.0,0.07]
[1747221068510,0.77782937,103930.0,103920.0,0.07]
[1747221068700,0.85556938,103930.0,103920.0,0.07]
[1747221070600,0.77782937,103930.0,103920.0,0.07]
[1747221070809,0.85556938,103930.0,103920.0,0.07]
[1747221073498,0.85556938,103930.0,103920.0,0.1032]
[1747221074312,0.63900938,103930.0,103920.0,0.1032]
[1747221074498,1.02156938,103930.0,103920.0,0.1032]
[1747221075003,0.05466937,103930.0,103920.0,0.54174001]
[1747221075306,0.1226832,103940.0,103920.0,0.82192725]
[1747221075608,0.1226832,103940.0,103930.0,1.67594001]
[1747221075808,0.1557832,103940.0,103930.0,1.67594001]
[1747221076110,0.1557832,103940.0,103930.0,1.7602]
[1747221076308,0.1557832,103940.0,103930.0,1.93415398]
[1747221076810,0.17046554,103940.0,103930.0,1.93415398]
[1747221077013,0.13736554,103940.0,103930.0,1.93415398]
[1747221077309,0.13736554,103940.0,103930.0,2.29595398]
[1747221077711,0.13736554,103940.0,103930.0,2.29695398]
[1747221079511,0.16966554,103940.0,103930.0,2.29695398]
[1747221079717,0.04698234,103940.0,103930.0,2.29695398]
[1747221083013,0.01468234,103940.0,103930.0,2.29695398]
[1747221083217,0.88902,103950.0,103930.0,2.29695398]
[1747221083426,0.96676001,103950.0,103940.0,0.0935]
[1747221083713,0.88902,103950.0,103940.0,0.0935]
[1747221084117,0.88902,103950.0,103940.0,0.18970472]
[1747221084710,1.31676001,103950.0,103940.0,0.0625]
[1747221084911,1.39450002,103950.0,103930.0,1.501]
[1747221085118,1.39450002,103950.0,103930.0,0.001]
[1747221085119,0.61028002,103940.0,103930.0,0.001]
[1747221085319,0.93028002,103940.0,103920.0,0.0765]
[1747221085522,0.35780001,103930.0,103920.0,1.9373]
[1747221085707,0.0639,103930.0,103920.0,2.03350472]
[1747221085908,0.01439201,103940.0,103920.0,2.19898474]
[1747221086220,0.0327,103940.0,103930.0,0.53404001]
[1747221086425,0.0327,103940.0,103930.0,0.54404001]
[1747221086922,0.0327,103940.0,103930.0,0.64026324]
[1747221087121,0.0327,103940.0,103930.0,0.80226324]
[1747221087625,0.0327,103940.0,103930.0,0.80326324]
[1747221088819,0.04743135,103940.0,103930.0,0.80326324]
[1747221089021,0.04743135,103940.0,103930.0,0.80426324]
[1747221091030,0.04743135,103940.0,103930.0,2.30426324]
[1747221092726,0.04743135,103940.0,103930.0,2.29426324]
[1747221093026,0.07753135,103940.0,103930.0,2.29426324]
[1747221093626,0.29527136,103940.0,103930.0,2.21652323]
[1747221094027,0.29527136,103940.0,103930.0,0.32322323]
[1747221094331,0.29527136,103940.0,103930.0,0.0333]
[1747221094628,0.29527136,103940.0,103930.0,1.5333]
[1747221098828,0.21753135,103940.0,103930.0,1.5333]
[1747221099031,0.29527136,103940.0,103930.0,1.5333]
[1747221105738,0.15527136,103940.0,103930.0,1.5333]
[1747221105917,0.15527136,103940.0,103930.0,1.5655]
[1747221105918,0.07753135,103940.0,103930.0,1.5655]
[1747221106123,0.10783135,103940.0,103930.0,1.64324001]
[1747221106323,0.32383135,103940.0,103930.0,1.67594001]
[1747221106520,0.10783135,103940.0,103930.0,2.03674001]
[1747221106722,0.04743135,103940.0,103930.0,2.13295398]
[1747221108738,0.04743135,103940.0,103930.0,0.63295398]
[1747221109334,0.04743135,103940.0,103930.0,2.13295398]
[1747221111138,0.04743135,103940.0,103930.0,2.29495398]
[1747221114139,0.04743135,103940.0,103930.0,2.13295398]
[1747221120541,0.11023135,103940.0,103930.0,2.13295398]
[1747221124443,0.04743135,103940.0,103930.0,2.13295398]
[1747221128130,0.0655,103950.0,103930.0,2.29495398]
[1747221128334,0.31236,103950.0,103940.0,0.53464001]
[1747221128630,0.0966,103950.0,103940.0,0.53464001]
[1747221128839,0.0642,103950.0,103940.0,2.03464001]
[1747221129739,0.0311,103950.0,103940.0,2.03464001]
[1747221130043,0.0311,103950.0,103940.0,2.11238002]
[1747221130344,0.0311,103950.0,103940.0,2.03464001]
[1747221130736,0.04585281,103950.0,103940.0,2.11238002]
[1747221130936,0.1246832,103960.0,103940.0,2.20858402]
[1747221131138,0.1568832,103960.0,103950.0,0.53114001]
[1747221131338,0.0342,103960.0,103950.0,0.53114001]
[1747221132342,0.0342,103960.0,103950.0,0.62733547]
[1747221134445,0.0342,103960.0,103950.0,2.12733547]
[1747221135551,0.099,103960.0,103950.0,2.12733547]
[1747221143847,0.099,103960.0,103950.0,2.04959546]
[1747221144149,0.099,103960.0,103950.0,2.12733547]
[1747221144343,0.0342,103960.0,103950.0,2.12733547]
[1747221145348,0.0342,103960.0,103950.0,2.28933547]
[1747221145648,0.0342,103960.0,103950.0,2.29033547]
[1747221147141,0.0342,103960.0,103950.0,2.29133547]
[1747221147846,0.002,103960.0,103950.0,2.29133547]
[1747221148749,0.0346,103960.0,103950.0,2.29133547]
[1747221149845,0.0346,103960.0,103950.0,2.50697547]
[1747221150843,0.0346,103960.0,103950.0,2.52047547]
[1747221153553,0.0616,103970.0,103950.0,2.59821548]
[1747221153753,0.0616,103970.0,103960.0,0.53194001]
[1747221154353,0.0616,103970.0,103960.0,2.12812622]
[1747221154652,0.0616,103970.0,103960.0,2.05038621]
[1747221154956,0.0616,103970.0,103960.0,2.12812622]
[1747221157254,0.0928,103970.0,103960.0,2.12812622]
[1747221157443,0.0928,103970.0,103960.0,2.05038621]
[1747221157843,0.0928,103970.0,103960.0,2.12812622]
[1747221162346,0.0928,103970.0,103960.0,2.12912622]
[1747221163150,0.0928,103970.0,103960.0,2.13012622]
[1747221163458,0.0928,103970.0,103960.0,2.05238621]
[1747221163960,0.0928,103970.0,103960.0,2.13012622]
[1747221167363,0.0928,103970.0,103960.0,2.12912622]
[1747221168565,0.0928,103970.0,103960.0,2.12812622]
[1747221170662,0.0928,103970.0,103960.0,2.12912622]
[1747221172063,0.0928,103970.0,103960.0,2.13012622]
[1747221172267,0.0928,103970.0,103960.0,2.12912622]
[1747221172571,0.0928,103970.0,103960.0,2.05138621]
[1747221172862,0.0928,103970.0,103960.0,2.12812622]
[1747221174359,0.0928,103970.0,103960.0,2.05038621]
[1747221174558,0.0928,103970.0,103960.0,2.12812622]
[1747221175271,0.0928,103970.0,103960.0,2.12912622]
[1747221175569,0.0928,103970.0,103960.0,2.13012622]
[1747221181067,0.0928,103970.0,103960.0,1.76932622]
[1747221181370,0.0928,103970.0,103960.0,2.13012622]
[1747221182665,0.19093978,103970.0,103960.0,2.13012622]
[1747221183564,0.19093978,103970.0,103960.0,2.05238621]
[1747221183870,0.19093978,103970.0,103960.0,2.13012622]
[1747221185574,0.0928,103970.0,103960.0,2.13012622]
[1747221188872,0.0928,103970.0,103960.0,2.05238621]
[1747221189172,0.0928,103970.0,103960.0,2.13012622]
[1747221191762,0.0928,103970.0,103960.0,2.05238621]
[1747221192072,0.0928,103970.0,103960.0,2.13012622]
[1747221192674,0.0928,103970.0,103960.0,2.05238621]
[1747221192875,0.0928,103970.0,103960.0,2.13012622]
[1747221193876,0.0928,103970.0,103960.0,2.05238621]
[1747221194065,0.0928,103970.0,103960.0,2.13012622]
[1747221194867,0.0928,103970.0,103960.0,2.05238621]
[1747221195063,0.0928,103970.0,103960.0,2.13012622]
[1747221195875,0.50573643,103980.0,103960.0,2.20786623]
[1747221196076,0.53773643,103980.0,103970.0,0.17334001]
[1747221196270,0.60153643,103980.0,103970.0,0.17334001]
[1747221196471,0.60153643,103980.0,103970.0,1.67334001]
[1747221196772,0.60153643,103980.0,103970.0,1.7695216]
[1747221197067,0.24073643,103980.0,103970.0,1.7695216]
[1747221197775,0.24073643,103980.0,103970.0,2.1303216]
[1747221197980,0.24073643,103980.0,103970.0,2.1313216]
[1747221198668,0.11837071,103980.0,103970.0,2.1313216]
[1747221198868,0.11837071,103980.0,103970.0,2.1323216]
[1747221201478,0.11837071,103980.0,103970.0,0.6323216]
[1747221201676,0.02257071,103980.0,103970.0,0.6323216]
[1747221202072,0.02257071,103980.0,103970.0,2.1323216]
[1747221203281,0.02257071,103980.0,103970.0,2.2943216]
[1747221203579,0.11667071,103980.0,103970.0,2.2943216]
[1747221204282,0.11667071,103980.0,103970.0,2.1323216]
[1747221204768,0.11667071,103980.0,103970.0,2.1458216]
[1747221204970,0.11667071,103980.0,103970.0,2.00508159]
[1747221205172,0.11667071,103980.0,103970.0,2.1159216]
[1747221205373,0.11667071,103980.0,103970.0,2.1484216]
[1747221207078,0.11667071,103980.0,103970.0,2.1474216]
[1747221207279,0.11667071,103980.0,103970.0,2.1484216]
[1747221207584,0.02257071,103980.0,103970.0,2.1484216]
[1747221207973,0.05377071,103980.0,103970.0,2.1484216]
[1747221208169,0.05377071,103980.0,103970.0,2.07068159]
[1747221208476,0.05377071,103980.0,103970.0,2.1484216]
[1747221208477,0.11647071,103980.0,103970.0,2.1484216]
[1747221209476,0.11647071,103980.0,103970.0,2.07068159]